fUSD/lending_fUSD_20260116
["ID","MTS","AMOUNT","RATE_DAILY","PERIOD"]
[402169249,1768563038516,-300.73444003,0.00017325,2]
[402169250,1768563038527,-300.0,0.00017325,2]
[402169251,1768563038536,-250.0,0.00017325,2]
[402169252,1768563038546,-600.0,0.00017325,2]
[402169253,1768563038555,-195.0,0.00017325,2]
[402169254,1768563038564,-447.52869048,0.00017325,2]
[402169255,1768563038574,-250.0,0.00017325,2]
[402169256,1768563038583,-291.94456744,0.00017328,2]
[402169257,1768563038592,-195.0,0.00017328,2]
[402169258,1768563038602,-1092.39,0.00017344,2]
[402169259,1768563038611,-172.5950476,0.00017346,2]
[402169260,1768563038621,-3398.57848277,0.00017381,2]
[402169261,1768563038631,-4577.78931763,0.00017439,2]
[402169262,1768563038640,-3398.57848277,0.00017511,2]
[402169263,1768563038651,-150.0,0.00017552,2]
[402169264,1768563038661,-354.81044866,0.00017555,2]
[402169265,1768563038670,-168.0,0.00017591,2]
[402169266,1768563038680,-4577.78931763,0.00017592,2]
[402169267,1768563038689,-1092.39,0.00017618,2]
[402169268,1768563038699,-172.5950476,0.00017623,2]
[402169269,1768563038708,-662.05261866,0.0001764,2]
[402169270,1768563038719,-3398.57848277,0.0001764,2]
[402169271,1768563038727,-150.0,0.00017698,2]
[402169272,1768563038737,-1508.0,0.000177,2]
[402169273,1768563038747,-1000.0,0.00017701,2]
[402169274,1768563038756,-500.0,0.00017725,2]
[402169275,1768563038767,-150.0,0.0001774,2]
[402169276,1768563038777,-4577.78931763,0.00017746,2]
[402169277,1768563038786,-2094.0,0.00017755,2]
[402169278,1768563038795,-150.0,0.00017765,2]
[402169279,1768563038805,-150.0,0.00017769,2]
[402169280,1768563038814,-3398.57848277,0.0001777,2]
[402169281,1768563038823,-500.0,0.0001778,2]
[402169282,1768563038833,-1000.0,0.00017786,2]
[402169283,1768563038843,-1000.0,0.00017802,2]
[402169284,1768563038852,-150.0,0.00017813,2]
[402169285,1768563038861,-150.0,0.00017817,2]
[402169286,1768563038871,-250.0,0.0001782,2]
[402169287,1768563038881,-188.2719,0.0001782,2]
[402169288,1768563038890,-188.27191,0.0001782,2]
[402169289,1768563038901,-1000.0,0.00017823,2]
[402169290,1768563038911,-500.0,0.00017835,2]
[402169291,1768563038921,-420.0,0.00017837,2]
[402169292,1768563038931,-1000.0,0.00017841,2]
[402169293,1768563038941,-150.0,0.00017842,2]
[402169294,1768563038951,-589.5,0.00017852,2]
[402169295,1768563038961,-500.0,0.00017889,2]
[402169296,1768563038970,-1092.39,0.00017892,2]
[402169297,1768563038980,-3398.57848277,0.000179,2]
[402169298,1768563038989,-172.5950476,0.000179,2]
[402169299,1768563038999,-4577.78931763,0.000179,2]
[402169300,1768563039009,-1500.0,0.000179,2]
[402169301,1768563039018,-3703.0,0.000179,2]
[402169302,1768563039028,-156.71374248,0.00017901,2]
[402169303,1768563039038,-150.0,0.00017912,2]
[402169304,1768563039047,-1000.0,0.00017912,2]
[402169305,1768563039056,-1000.0,0.00017916,2]
[402169306,1768563039066,-150.0,0.00017917,2]
[402169308,1768563039271,-1680.0,0.00017926,2]
[402169309,1768563039282,-410.5,0.00017944,2]
[402169310,1768563039292,-500.0,0.00017944,2]
[402169311,1768563039301,-1000.0,0.00017962,2]
[402169312,1768563039311,-1000.0,0.00017973,2]
[402169313,1768563039320,-150.0,0.00017973,2]
[402169314,1768563039331,-150.0,0.00017981,2]
[402169315,1768563039340,-1000.0,0.00017987,2]
[402169316,1768563039350,-1000.0,0.00017989,2]
[402169317,1768563039359,-500.0,0.00017999,2]
[402169318,1768563039368,-4285.5425467,0.00017999,2]
[402169319,1768563039377,-3917.6309261,0.00017999,2]
[402169320,1768563039386,-25615.7265314,0.00017999,2]
[402169321,1768563039395,-531713.42729832,0.00018,2]
[402169322,1768563039407,-564.0886184,0.00018,2]
[402169323,1768563039419,-260.25,0.00018,2]
[402169324,1768563039430,-165218.40174696,0.00018,2]
[402169325,1768563039441,-468.02215379,0.00018,2]
[402169326,1768563039452,-1563.61745328,0.00018,2]
[402169327,1768563039463,-1362.74,0.00018,2]
[402169328,1768563039476,-2888.17197887,0.00018,2]
[402169329,1768563039487,-477.01024154,0.00018,2]
[402169330,1768563039499,-10214.30551913,0.00018,2]
[402169331,1768563039510,-24418.91535953,0.00018,2]
[402169332,1768563039924,-9347.2832205,0.00018,2]
[402169335,1768563039935,-3336.62340853,0.00018,2]
[402169337,1768563039948,-309694.88999783,0.00018,2]
[402169339,1768563039958,-557255.79282032,0.00018,2]
[402169341,1768563039967,-7059.67539955,0.00018,2]
[402169343,1768563039977,-77898.99946199,0.00018,2]
[402169346,1768563039993,-1359.71344481,0.00018,2]
[402169348,1768563040003,-463.67418489,0.00018,2]
[402169350,1768563040015,-727.40483639,0.00018,2]
[402169352,1768563040026,-19401.56307888,0.00018,2]
[402169356,1768563040051,-57912.89630906,0.00018,2]
[402169358,1768563040062,-405.28705655,0.00018,2]
[402169360,1768563040074,-273.47278806,0.00018,2]
[402169362,1768563040085,-481.57727047,0.00018,2]
[402169364,1768563040096,-330.0,0.00018,2]
[402169367,1768563040112,-666.65769411,0.00018,2]
[402169369,1768563040123,-1690.66002,0.00018,2]
[402169372,1768563040135,-918.085566,0.00018,2]
[402169374,1768563040147,-535.85788251,0.00018,2]
[402169376,1768563040158,-6799382.43375643,0.00018,2]
[402169379,1768563040177,-1937131.08484008,0.00018,2]
[402169381,1768563040187,-700.89998349,0.00018,2]
[402169383,1768563040196,-225.9,0.00018,21]
[402169385,1768563040206,-151.0,0.00018,2]
[402169387,1768563040215,-151.0,0.00018,2]
[402169389,1768563040224,-151.0,0.00018,2]
[402169391,1768563040235,-151.0,0.00018,2]
[402169393,1768563040250,-151.0,0.00018,2]
[402169395,1768563040260,-159.37,0.00018,3]
[402169398,1768563040270,-151.0,0.00018,2]
[402169400,1768563040279,-151.0,0.00018,2]
[402169402,1768563040290,-1263.0,0.00018,2]
[402169404,1768563040299,-151.0,0.00018,2]
[402169406,1768563040309,-1263.0,0.00018,2]
[402169408,1768563040318,-842.0,0.00018,2]
[402169410,1768563040327,-151.0,0.00018,2]
[402169412,1768563040336,-151.0,0.00018,2]
[402169414,1768563040345,-1263.0,0.00018,2]
[402169416,1768563040355,-842.0,0.00018,2]
[402169418,1768563040364,-151.0,0.00018,2]
[402169420,1768563040373,-151.0,0.00018,2]
[402169422,1768563040383,-1263.0,0.00018,2]
[402169424,1768563040392,-842.0,0.00018,2]
[402169426,1768563040401,-151.0,0.00018,2]
[402169428,1768563040410,-151.0,0.00018,2]
[402169430,1768563040420,-1263.0,0.00018,2]
[402169432,1768563040429,-842.0,0.00018,2]
[402169434,1768563040438,-151.0,0.00018,2]
[402169436,1768563040447,-155.0,0.00018,2]
[402169438,1768563040457,-151.0,0.00018,2]
[402169440,1768563040466,-1263.0,0.00018,2]
[402169442,1768563040475,-151.0,0.00018,2]
[402169444,1768563040484,-842.0,0.00018,2]
[402169445,1768563040493,-155.0,0.00018,2]
[402169446,1768563040503,-151.0,0.00018,2]
[402169447,1768563040512,-1263.0,0.00018,2]
[402169448,1768563040523,-151.0,0.00018,2]
[402169449,1768563040532,-842.0,0.00018,2]
[402169450,1768563040542,-155.0,0.00018,2]
[402169451,1768563040551,-151.0,0.00018,2]
[402169452,1768563040560,-1263.0,0.00018,2]
[402169453,1768563040570,-151.0,0.00018,2]
[402169454,1768563040579,-842.0,0.00018,2]
[402169455,1768563040589,-155.0,0.00018,2]
[402169456,1768563040599,-151.0,0.00018,2]
[402169457,1768563040608,-1263.0,0.00018,2]
[402169458,1768563040618,-151.0,0.00018,2]
[402169459,1768563040627,-842.0,0.00018,2]
[402169460,1768563040636,-155.0,0.00018,2]
[402169461,1768563040646,-151.0,0.00018,2]
[402169462,1768563040655,-1263.0,0.00018,2]
[402169463,1768563040664,-151.0,0.00018,2]
[402169464,1768563040673,-155.0,0.00018,2]
[402169465,1768563040683,-151.0,0.00018,2]
[402169466,1768563040692,-151.0,0.00018,2]
[402169467,1768563040702,-1263.0,0.00018,2]
[402169468,1768563040712,-399.30887887,0.00018,2]
[402169470,1768563040721,-155.0,0.00018,2]
[402169472,1768563040730,-151.0,0.00018,2]
[402169474,1768563040740,-151.0,0.00018,2]
[402169476,1768563040749,-1263.0,0.00018,2]
[402169478,1768563040759,-151.0,0.00018,2]
[402169480,1768563040768,-155.0,0.00018,2]
[402169482,1768563040777,-151.0,0.00018,2]
[402169484,1768563040786,-1263.0,0.00018,2]
[402169485,1768563040796,-233.82949653,0.00018,2]
[402169486,1768563040805,-151.0,0.00018,2]
[402169487,1768563040814,-151.0,0.00018,2]
[402169488,1768563040823,-1263.0,0.00018,2]
[402169489,1768563040833,-151.0,0.00018,2]
[402169490,1768563040844,-1263.0,0.00018,2]
[402169491,1768563040853,-151.0,0.00018,2]
[402169492,1768563040863,-152.0,0.00018,2]
[402169493,1768563040883,-1263.0,0.00018,2]
[402169494,1768563040895,-151.0,0.00018,2]
[402169495,1768563040905,-151.0,0.00018,2]
[402169496,1768563040914,-151.0,0.00018,2]
[402169497,1768563040923,-152.0,0.00018,2]
[402169498,1768563040932,-1263.0,0.00018,2]
[402169499,1768563040942,-151.0,0.00018,2]
[402169500,1768563040951,-151.0,0.00018,2]
[402169501,1768563040960,-152.0,0.00018,2]
[402169502,1768563040969,-1263.0,0.00018,2]
[402169503,1768563040978,-151.0,0.00018,2]
[402169504,1768563040987,-152.0,0.00018,2]
[402169505,1768563040996,-1263.0,0.00018,2]
[402169506,1768563041005,-151.0,0.00018,2]
[402169507,1768563041014,-152.0,0.00018,2]
[402169508,1768563041024,-1263.0,0.00018,2]
[402169509,1768563041032,-151.0,0.00018,2]
[402169510,1768563041041,-151.0,0.00018,2]
[402169511,1768563041050,-152.0,0.00018,2]
[402169512,1768563041059,-1263.0,0.00018,2]
[402169513,1768563041068,-294.60982004,0.00018,2]
[402169514,1768563041078,-151.0,0.00018,2]
[402169515,1768563041087,-152.0,0.00018,2]
[402169516,1768563041096,-1263.0,0.00018,2]
[402169517,1768563041105,-152.0,0.00018,2]
[402169518,1768563041115,-151.0,0.00018,2]
[402169519,1768563041125,-152.0,0.00018,2]
[402169520,1768563041135,-151.0,0.00018,2]
[402169521,1768563041144,-1263.0,0.00018,2]
[402169522,1768563041154,-152.0,0.00018,2]
[402169523,1768563041163,-151.0,0.00018,2]
[402169524,1768563041174,-1263.0,0.00018,2]
[402169525,1768563041183,-152.0,0.00018,2]
[402169526,1768563041192,-1263.0,0.00018,2]
[402169527,1768563041202,-152.0,0.00018,2]
[402169528,1768563041211,-1263.0,0.00018,2]
[402169529,1768563041221,-152.0,0.00018,2]
[402169530,1768563041231,-151.0,0.00018,2]
[402169531,1768563041240,-1263.0,0.00018,2]
[402169532,1768563041253,-151.0,0.00018,2]
[402169533,1768563041263,-152.0,0.00018,2]
[402169534,1768563041273,-1263.0,0.00018,2]
[402169535,1768563041283,-151.0,0.00018,2]
[402169536,1768563041292,-152.0,0.00018,2]
[402169537,1768563041301,-1263.0,0.00018,2]
[402169538,1768563041311,-151.0,0.00018,2]
[402169539,1768563041323,-274.65622996,0.00018,2]
[402169540,1768563041333,-1263.0,0.00018,2]
[402169541,1768563041343,-151.0,0.00018,2]
[402169542,1768563041352,-1263.0,0.00018,2]
[402169543,1768563041362,-151.0,0.00018,2]
[402169544,1768563041372,-1263.0,0.00018,2]
[402169545,1768563041381,-1263.0,0.00018,2]
[402169546,1768563041390,-151.0,0.00018,2]
[402169547,1768563041399,-1263.0,0.00018,2]
[402169548,1768563041409,-151.0,0.00018,2]
[402169549,1768563041418,-1263.0,0.00018,2]
[402169550,1768563041428,-151.0,0.00018,2]
[402169551,1768563041437,-1263.0,0.00018,2]
[402169552,1768563041446,-151.0,0.00018,2]
[402169553,1768563041456,-1263.0,0.00018,2]
[402169554,1768563041464,-151.0,0.00018,2]
[402169555,1768563041475,-151.0,0.00018,2]
[402169556,1768563041484,-1263.0,0.00018,2]
[402169557,1768563041494,-151.0,0.00018,2]
[402169558,1768563041503,-151.0,0.00018,2]
[402169559,1768563041512,-1263.0,0.00018,2]
[402169560,1768563041522,-1263.0,0.00018,2]
[402169561,1768563041531,-151.0,0.00018,2]
[402169562,1768563041541,-492.0141556,0.00018,2]
[402169563,1768563041596,-151.0,0.00018,2]
[402169564,1768563041605,-151.0,0.00018,2]
[402169565,1768563041615,-151.0,0.00018,2]
[402169566,1768563041624,-151.0,0.00018,2]
[402169567,1768563041633,-151.0,0.00018,2]
[402169568,1768563041643,-158.0,0.00018,2]
[402169569,1768563041652,-158.0,0.00018,2]
[402169570,1768563041660,-151.0,0.00018,2]
[402169571,1768563041669,-158.0,0.00018,2]
[402169572,1768563041678,-151.0,0.00018,2]
[402169573,1768563041688,-158.0,0.00018,2]
[402169574,1768563041697,-205.58982514,0.00018,2]
[402169575,1768563041706,-158.0,0.00018,2]
[402169576,1768563041715,-158.0,0.00018,2]
[402169577,1768563041724,-162.75894417,0.00018,2]
[402169578,1768563041733,-151.0,0.00018,2]
[402169579,1768563041742,-151.0,0.00018,2]
[402169580,1768563041751,-175.71837,0.00018,2]
[402169581,1768563041759,-152.426781,0.00018,2]
[402169582,1768563041769,-221.672082,0.00018,2]
[402169583,1768563041778,-221.672082,0.00018,2]
[402169584,1768563041787,-221.672082,0.00018,2]
[402169585,1768563041796,-221.672082,0.00018,2]
[402169586,1768563041805,-3527256.3837181,0.00018,2]
[402169593,1768563042503,-1500.0,0.00018,2]
[402169594,1768563042515,-286.28539746,0.00018,2]
[402169595,1768563042913,-637.41718911,0.00018,2]
[402169596,1768563042924,-1796.97144954,0.00018,2]
[402169600,1768563045743,-2680.19713153,0.00018,2]
[402169601,1768563045818,-2000.0,0.00018,2]
[402169602,1768563065744,500.0,0.00015773,2]
[402169603,1768563277656,169.65,0.00013566,2]
[402169630,1768563657573,5273.99,0.0001385,2]
[402169673,1768563895438,-166.66,0.0001577,2]
[402169674,1768563895460,-195.0,0.0001577,2]
[402169675,1768563895481,-67.33754226,0.00015771,2]
[402169676,1768563926185,-182.66245774,0.00015771,2]
[402169677,1768563926208,-3.36596445,0.00015771,2]
[402169678,1768563928991,-250.57817873,0.00015771,2]
[402169680,1768563993452,-185.52911474,0.00015771,2]
[402169681,1768563993473,-25.45253772,0.00015771,2]
[402169684,1768564053086,-314.92264059,0.00015771,2]
[402169685,1768564053106,-195.0,0.00015771,2]
[402169686,1768564053127,-1200.0,0.00015772,2]
[402169687,1768564053146,-500.85523386,0.00015773,2]
[402169688,1768564053166,-500.0,0.00015773,2]
[402169689,1768564053189,-500.0,0.00015773,2]
[402169690,1768564053209,-500.0,0.00015773,2]
[402169691,1768564053230,-500.0,0.00015773,2]
[402169692,1768564053249,-500.0,0.00015773,2]
[402169693,1768564053269,-500.0,0.00015773,2]
[402169694,1768564053288,-166.66,0.00016102,2]
[402169695,1768564053310,-151.0,0.00016117,2]
[402169696,1768564053330,-151.0,0.00016131,2]
[402169697,1768564053350,-1000.0,0.00016321,2]
[402169698,1768564053686,-500.0,0.00016321,2]
[402169699,1768564053709,-166.66,0.00016434,2]
[402169700,1768564053730,-1157.54733506,0.00016598,2]
[402169701,1768564054103,-614.99266494,0.00016598,2]
[402169702,1768564054127,-168.05187007,0.00016637,2]
[402169707,1768564209980,203.73721321,0.00015773,2]
[402169708,1768564210000,296.26278679,0.00015773,2]
[402169709,1768564210128,500.0,0.00015773,2]
[402169716,1768564231669,-290.0,0.00016637,2]
[402169717,1768564231679,-1003.94812993,0.00016637,2]
[402169718,1768564231689,-250.0,0.00016702,2]
[402169719,1768564231702,-166.66,0.00016766,2]
[402169720,1768564231711,-226.72,0.00016875,2]
[402169721,1768564231721,-463.11851276,0.00017,2]
[402169722,1768564231732,-656.09435565,0.00017,2]
[402169723,1768564231744,-434.57723662,0.00017,2]
[402169726,1768564231879,-70.39255686,0.00017,2]
[402169727,1768564231895,-375.81733811,0.00017,2]
[402169728,1768564231907,-250.0,0.00017,2]
[402169729,1768564231918,-322.6107,0.00017077,2]
[402169730,1768564231930,-166.66,0.00017098,2]
[402169731,1768564231940,-150.0,0.00017122,2]
[402169732,1768564231950,-529.85,0.000172,2]
[402169733,1768564231960,-244.0,0.00017235,2]
[402169734,1768564231971,-244.0,0.00017276,2]
[402169735,1768564231981,-1200.0,0.0001731,2]
[402169736,1768564231990,-244.0,0.00017311,2]
[402169737,1768564232001,-150.0,0.00017314,2]
[402169738,1768564232011,-244.0,0.00017318,2]
[402169739,1768564232021,-244.0,0.00017335,2]
[402169740,1768564232031,-300.0,0.00017338,2]
[402169741,1768564232042,-1371.91,0.00017339,2]
[402169742,1768564232051,-500.0,0.00017339,2]
[402169743,1768564232061,-200.0,0.00017339,2]
[402169744,1768564232071,-200.0,0.00017339,2]
[402169745,1768564232080,-620.0,0.00017339,2]
[402169746,1768564232090,-151.0,0.00017339,2]
[402169747,1768564232100,-151.0,0.00017339,2]
[402169748,1768564232109,-151.0,0.00017339,2]
[402169749,1768564232120,-151.0,0.00017339,2]
[402169750,1768564232129,-151.0,0.00017339,2]
[402169751,1768564232139,-151.0,0.00017339,2]
[402169752,1768564232149,-151.0,0.00017339,2]
[402169753,1768564232159,-151.0,0.00017339,2]
[402169754,1768564232169,-200.0,0.00017339,2]
[402169755,1768564232180,-151.0,0.00017339,2]
[402169756,1768564232192,-151.0,0.00017339,2]
[402169757,1768564232202,-150.0,0.00017342,2]
[402169758,1768564232212,-300.0,0.00017348,2]
[402169759,1768564232222,-368.81406335,0.00017348,2]
[402169760,1768564232233,-244.0,0.00017353,2]
[402169761,1768564232243,-158.66,0.00017362,2]
[402169762,1768564232254,-244.0,0.00017362,2]
[402169763,1768564232267,-244.0,0.00017364,2]
[402169764,1768564232279,-244.0,0.000174,2]
[402169765,1768564232290,-244.0,0.00017425,2]
[402169766,1768564232300,-166.66,0.0001743,2]
[402169767,1768564232310,-244.0,0.00017452,2]
[402169768,1768564232320,-1172.0,0.00017469,2]
[402169769,1768564232331,-500.0,0.00017472,2]
[402169770,1768564232343,-244.0,0.00017494,2]
[402169771,1768564232354,-244.0,0.00017532,2]
[402169772,1768564232364,-244.0,0.00017552,2]
[402169773,1768564232374,-244.0,0.00017556,2]
[402169774,1768564232387,-1371.91,0.00017613,2]
[402169775,1768564232398,-244.0,0.00017622,2]
[402169776,1768564232410,-662.05261866,0.0001764,2]
[402169777,1768564232421,-244.0,0.0001766,2]
[402169778,1768564232433,-244.0,0.00017662,2]
[402169779,1768564232770,-1822.0,0.00017668,2]
[402169780,1768564232782,-244.0,0.00017694,2]
[402169781,1768564232791,-5436.73723193,0.000177,2]
[402169782,1768564232801,-3398.57848284,0.000177,2]
[402169783,1768564232810,-170.74140602,0.000177,2]
[402169784,1768564232819,-1500.0,0.000177,2]
[402169785,1768564232829,-150.0,0.00017709,2]
[402169786,1768564232838,-5436.73723193,0.00017722,2]
[402169787,1768564232848,-3398.57848277,0.00017722,2]
[402169788,1768564232859,-500.0,0.00017725,2]
[402169789,1768564232868,-1000.0,0.00017727,2]
[402169790,1768564232878,-170.74140599,0.0001774,2]
[402169791,1768564232887,-1000.0,0.00017743,2]
[402169792,1768564232897,-5436.73723193,0.00017744,2]
[402169793,1768564232907,-3398.57848277,0.00017744,2]
[402169794,1768564232916,-200.0,0.00017746,2]
[402169795,1768564232926,-1000.0,0.00017755,2]
[402169796,1768564232935,-410.5,0.00017761,2]
[402169797,1768564232944,-5436.73723193,0.00017767,2]
[402169798,1768564232952,-3398.57848277,0.00017767,2]
[402169799,1768564232961,-1822.0,0.00017768,2]
[402169800,1768564232970,-740.402,0.0001777,2]
[402169801,1768564232979,-150.0,0.00017776,2]
[402169802,1768564232988,-500.0,0.0001778,2]
[402169803,1768564232997,-170.74140599,0.0001778,2]
[402169804,1768564233006,-150.0,0.00017785,2]
[402169805,1768564233015,-500.0,0.00017788,2]
[402169806,1768564233024,-161.41637663,0.00017788,2]
[402169807,1768564233035,-500.0,0.00017788,2]
[402169808,1768564233044,-500.0,0.00017788,2]
[402169809,1768564233056,-381.25663942,0.00017788,2]
[402169810,1768564233065,-500.0,0.00017788,2]
[402169811,1768564233074,-500.0,0.00017788,2]
[402169812,1768564233083,-5436.73723193,0.00017789,2]
[402169813,1768564233093,-3398.57848277,0.00017789,2]
[402169814,1768564233104,-1000.0,0.0001779,2]
[402169815,1768564233113,-196.19599698,0.00017799,2]
[402169816,1768564233123,-234.38930551,0.00017799,2]
[402169817,1768564233133,-202.52287439,0.00017799,2]
[402169818,1768564233142,-500.0,0.00017799,2]
[402169819,1768564233151,-266.03405843,0.00017799,2]
[402169820,1768564233160,-343.38264017,0.00017799,2]
[402169821,1768564233170,-500.0,0.00017799,2]
[402169822,1768564233179,-7225.29557455,0.000178,2]
[402169823,1768564233296,-259.85,0.000178,2]
[402169824,1768564233307,-1039.00956503,0.000178,2]
[402169825,1768564233318,-349.17285286,0.000178,2]
[402169826,1768564233331,-932.78264644,0.000178,2]
[402169832,1768564237603,-223.77462135,0.00016775,2]
[402169833,1768564237613,-2370.22650865,0.000177,2]
[402169834,1768564237624,-1159.41324796,0.000177,2]
[402169835,1768564237636,-4047.02104339,0.000177,2]
[402169836,1768564237645,-680707.00844383,0.000178,2]
[402170033,1768564239765,-601.88553964,0.000178,2]
[402170034,1768564239778,-348.07449977,0.000178,2]
[402170036,1768564239895,-308536.92087788,0.000178,2]
[402170038,1768564239904,-1000.0,0.000178,2]
[402170040,1768564239913,-5436.73723193,0.00017811,2]
[402170041,1768564239923,-3398.57848277,0.00017811,2]
[402170043,1768564239932,-999.0,0.00017816,3]
[402170045,1768564239942,-1892.31391,0.0001782,2]
[402170047,1768564239951,-1892.31391,0.0001782,2]
[402170049,1768564239959,-170.74140599,0.0001782,2]
[402170051,1768564239969,-156.71374248,0.00017824,2]
[402170052,1768564239978,-1000.0,0.00017825,2]
[402170054,1768564239987,-589.5,0.00017826,2]
[402170056,1768564239997,-150.0,0.00017827,2]
[402170058,1768564240006,-244.0,0.00017828,2]
[402170060,1768564240015,-5436.73723193,0.00017833,2]
[402170061,1768564240025,-3398.57848277,0.00017833,2]
[402170063,1768564240034,-500.0,0.00017835,2]
[402170065,1768564240043,-1000.0,0.00017839,2]
[402170067,1768564240052,-5436.73723193,0.00017856,2]
[402170068,1768564240061,-3398.57848277,0.00017856,2]
[402170070,1768564240070,-170.74140599,0.0001786,2]
[402170072,1768564240079,-5436.73723193,0.00017878,2]
[402170074,1768564240088,-3398.57848277,0.00017878,2]
[402170075,1768564240097,-1371.91,0.00017887,2]
[402170077,1768564240106,-500.0,0.00017889,2]
[402170079,1768564240115,-150.0,0.00017889,2]
[402170081,1768564240125,-1000.0,0.00017892,2]
[402170083,1768564240134,-150.0,0.00017899,2]
[402170085,1768564240144,-5436.73723193,0.000179,2]
[402170087,1768564240153,-3398.57848277,0.000179,2]
[402170088,1768564240163,-170.74140599,0.000179,2]
[402170090,1768564240172,-2089.42085514,0.000179,2]
[402170092,1768564240182,-2089.42085498,0.000179,2]
[402170094,1768564240191,-2089.42085498,0.000179,2]
[402170096,1768564240200,-2089.42085498,0.000179,2]
[402170098,1768564240210,-2089.42085498,0.000179,2]
[402170099,1768564240218,-2089.42085498,0.000179,2]
[402170101,1768564240227,-2089.42085498,0.000179,2]
[402170103,1768564240236,-2089.42085498,0.000179,2]
[402170105,1768564240245,-2089.42085498,0.000179,2]
[402170107,1768564240254,-2089.42085498,0.000179,2]
[402170109,1768564240262,-2089.42085498,0.000179,2]
[402170110,1768564240271,-2089.42085498,0.000179,2]
[402170112,1768564240280,-2089.42085498,0.000179,2]
[402170114,1768564240289,-2089.42085498,0.000179,2]
[402170116,1768564240298,-2089.42085498,0.000179,2]
[402170118,1768564240307,-2089.42085498,0.000179,2]
[402170120,1768564240323,-2089.42085498,0.000179,2]
[402170121,1768564240332,-2089.42085498,0.000179,2]
[402170123,1768564240341,-2089.42085498,0.000179,2]
[402170125,1768564240350,-2089.42085498,0.000179,2]
[402170127,1768564240359,-3705.0,0.000179,2]
[402170129,1768564240367,-1000.0,0.00017921,2]
[402170131,1768564240376,-150.0,0.00017925,2]
[402170132,1768564240385,-1000.0,0.00017935,2]
[402170134,1768564240396,-1000.0,0.00017937,2]
[402170136,1768564240405,-500.0,0.00017944,2]
[402170138,1768564240415,-1000.0,0.00017949,2]
[402170140,1768564240424,-150.0,0.00017956,2]
[402170142,1768564240433,-212.44,0.00017967,2]
[402170144,1768564240442,-6054.1155132,0.00017994,2]
[402170145,1768564240451,-1169.5983945,0.00017994,2]
[402170147,1768564240460,-500.0,0.00017999,2]
[402170149,1768564240469,-155.0,0.00017999,2]
[402170151,1768564240478,-6375176.38751714,0.00018,2]
[402170296,1768564242781,-1656.7328342,0.00018,2]
[402170297,1768564242850,-823.47041207,0.00018,2]
[402170301,1768564245700,-500.0,0.00017725,2]
[402170302,1768564245715,-500.0,0.0001778,2]
[402170303,1768564245727,-500.0,0.00017835,2]
[402170304,1768564245736,-3502.02263403,0.00018,2]
[402170305,1768564245989,-879.4170014,0.00018,2]
[402170307,1768564267745,615.72392014,0.00015773,2]
[402170308,1768564280006,500.0,0.00015773,2]
[402170309,1768564280186,500.0,0.00015773,2]
[402170310,1768564325361,500.0,0.00015773,2]
[402170311,1768564327516,500.0,0.00015773,2]